bitfinex-derivatives/quotes_ETHF0:USTF0_20251225
["timestamp","ask_amount","ask_price","bid_price","bid_amount"]
[1766686486852,3.38707451,2958.1,2957.1,0.83925924]
[1766686489552,3.38707451,2958.1,2957.0,3.383]
[1766686494256,3.38707451,2958.1,2957.0,4.87970861]
[1766686500564,3.38707451,2958.1,2957.0,1.49670861]
[1766686500763,3.38707451,2958.1,2956.4,11.81282562]
[1766686500764,1.82649941,2958.0,2956.5,3.382]
[1766686500956,0.83925924,2957.7,2956.5,3.382]
[1766686501156,4.36934234,2957.6,2956.5,3.382]
[1766686501463,3.382,2957.6,2956.5,3.382]
[1766686512771,9.5,2957.5,2956.5,3.382]
[1766686515277,9.5,2957.5,2956.5,9.341]
[1766686519182,0.16916,2957.8,2956.5,9.341]
[1766686519384,9.499,2957.7,2956.5,9.341]
[1766686529475,0.99236701,2957.6,2956.5,9.341]
[1766686529695,9.499,2957.7,2956.5,9.341]
[1766686529882,0.99236701,2957.6,2956.5,9.341]
[1766686530082,9.499,2957.7,2956.5,9.341]
[1766686530284,0.99236701,2957.6,2956.5,9.341]
[1766686530483,9.499,2957.7,2956.5,9.341]
[1766686530785,0.99237309,2957.6,2956.5,9.341]
[1766686530981,9.499,2957.7,2956.5,9.341]
[1766686531189,0.99237384,2957.6,2956.5,9.341]
[1766686531385,9.499,2957.7,2956.5,9.341]
[1766686531585,0.99238905,2957.6,2956.5,9.341]
[1766686531787,9.499,2957.7,2956.5,9.341]
[1766686532087,0.99238905,2957.6,2956.5,9.341]
[1766686532287,9.499,2957.7,2956.5,9.341]
[1766686532486,0.99240451,2957.6,2956.5,9.341]
[1766686532784,9.499,2957.7,2956.5,9.341]
[1766686532985,0.99240451,2957.6,2956.5,9.341]
[1766686533185,9.499,2957.7,2956.5,9.341]
[1766686533390,0.99240451,2957.6,2956.5,9.341]
[1766686533591,9.499,2957.7,2956.5,9.341]
[1766686533791,0.99243415,2957.6,2956.5,9.341]
[1766686534094,9.499,2957.7,2956.5,9.341]
[1766686534279,0.99243415,2957.6,2956.5,9.341]
[1766686534480,9.499,2957.7,2956.5,9.341]
[1766686534791,0.99244885,2957.6,2956.5,9.341]
[1766686534991,9.499,2957.7,2956.5,9.341]
[1766686535191,0.99244885,2957.6,2956.5,9.341]
[1766686535392,9.499,2957.7,2956.5,9.341]
[1766686535592,0.99246534,2957.6,2956.5,9.341]
[1766686535892,9.499,2957.7,2956.5,9.341]
[1766686536188,0.99246534,2957.6,2956.5,9.341]
[1766686536393,9.499,2957.7,2956.5,9.341]
[1766686536595,0.99248745,2957.6,2956.5,9.341]
[1766686536797,9.499,2957.7,2956.5,9.341]
[1766686536994,0.99248402,2957.6,2956.5,9.341]
[1766686537203,9.499,2957.7,2956.5,9.341]
[1766686537396,0.99248402,2957.6,2956.5,9.341]
[1766686537598,9.499,2957.7,2956.5,9.341]
[1766686537796,0.99250127,2957.6,2956.5,9.341]
[1766686538095,9.499,2957.7,2956.5,9.341]
[1766686538297,0.99250127,2957.6,2956.5,9.341]
[1766686538492,9.499,2957.7,2956.5,9.341]
[1766686538692,0.99252084,2957.6,2956.5,9.341]
[1766686538893,9.499,2957.7,2956.5,9.341]
[1766686539099,0.99252084,2957.6,2956.5,9.341]
[1766686539295,0.99254304,2957.5,2956.5,9.341]
[1766686539490,9.499,2957.7,2956.5,9.341]
[1766686539687,0.99254304,2957.6,2956.5,9.341]
[1766686539888,0.99254304,2957.5,2956.5,9.341]
[1766686540090,9.499,2957.7,2956.5,9.341]
[1766686540293,0.99254342,2957.6,2956.5,9.341]
[1766686540489,0.99254342,2957.5,2956.5,9.341]
[1766686540690,9.499,2957.7,2956.5,9.341]
[1766686540895,0.99256848,2957.6,2956.5,9.341]
[1766686541092,0.99256848,2957.5,2956.5,9.341]
[1766686541401,3.383,2957.4,2956.5,9.341]
[1766686543502,3.383,2957.4,2956.4,11.64358562]
[1766686545019,0.99267478,2957.3,2956.4,11.64358562]
[1766686545317,3.383,2957.4,2956.4,11.64358562]
[1766686545521,0.99233374,2957.3,2956.4,11.64358562]
[1766686545720,3.383,2957.4,2956.4,11.64358562]
[1766686546019,0.99233386,2957.3,2956.4,11.64358562]
[1766686546210,3.383,2957.4,2956.4,11.64358562]
[1766686546411,0.99233373,2957.3,2956.4,11.64358562]
[1766686546606,3.383,2957.4,2956.4,11.64358562]
[1766686546818,0.99213195,2957.3,2956.4,11.64358562]
[1766686547019,3.383,2957.4,2956.4,11.64358562]
[1766686553621,0.99154867,2957.3,2956.4,11.64358562]
[1766686553825,3.55218,2957.4,2956.4,11.64358562]
[1766686554015,0.99154938,2957.3,2956.4,11.64358562]
[1766686554218,3.55218,2957.4,2956.4,11.64358562]
[1766686554416,0.99147295,2957.3,2956.4,11.64358562]
[1766686554616,3.55218,2957.4,2956.4,11.64358562]
[1766686554823,1.16066333,2957.3,2956.4,11.64358562]
[1766686555024,0.16919,2957.3,2956.4,11.64358562]
[1766686562331,0.16919,2957.3,2956.2,0.1208519]
[1766686562629,0.98900742,2957.2,2956.2,0.1208519]
[1766686562827,0.98900742,2957.1,2956.2,0.1208519]
[1766686563029,10.48300742,2957.0,2956.2,0.1208519]
[1766686563229,3.383,2956.9,2956.2,0.1208519]
[1766686564031,3.383,2956.9,2956.0,0.00250246]
[1766686577537,6.109,2956.8,2956.0,0.00250246]
[1766686577732,9.493,2956.8,2956.0,0.00250246]
[1766686579045,9.493,2956.7,2956.0,0.00250246]
[1766686584338,0.1692,2957.1,2956.0,0.84245299]
[1766686584539,9.492,2956.8,2956.0,0.84245299]
[1766686584844,1.00912053,2957.7,2956.1,3.384]
[1766686585040,10.48110361,2957.6,2956.3,0.83995053]
[1766686585235,0.98910361,2957.5,2956.3,0.83995053]
[1766686585440,0.98910361,2957.4,2956.3,0.83995053]
[1766686585641,9.492,2957.6,2956.3,0.83995053]
[1766686585844,0.98901009,2957.5,2956.3,0.83995053]
[1766686586145,9.492,2957.6,2956.3,0.83995053]
[1766686586348,0.99451316,2957.5,2956.3,0.83995053]
[1766686586647,9.492,2957.6,2956.3,0.83995053]
[1766686586836,0.99452822,2957.5,2956.3,0.83995053]
[1766686587039,9.492,2957.6,2956.3,0.83995053]
[1766686587239,0.99452822,2957.5,2956.1,3.384]
[1766686587440,9.492,2957.6,2956.1,3.384]
[1766686587636,0.99438971,2957.5,2956.1,3.384]
[1766686587843,9.492,2957.6,2956.1,3.384]
[1766686588045,0.99438967,2957.5,2956.1,3.384]
[1766686588243,9.492,2957.6,2956.1,3.384]
[1766686588446,0.99426672,2957.5,2956.1,3.384]
[1766686588648,9.492,2957.6,2956.1,3.384]
[1766686588848,0.99426672,2957.5,2956.1,3.384]
[1766686589041,9.492,2957.6,2956.1,3.384]
[1766686589238,0.99426784,2957.5,2956.1,3.384]
[1766686589438,9.492,2957.6,2956.1,3.384]
[1766686589642,0.99416838,2957.5,2956.1,3.384]
[1766686589840,9.492,2957.6,2956.1,3.384]
[1766686590138,0.99416838,2957.5,2956.1,3.384]
[1766686590339,9.492,2957.6,2956.1,3.384]
[1766686590537,0.99407526,2957.5,2956.1,3.384]
[1766686590740,9.492,2957.6,2956.1,3.384]
[1766686590941,0.99407526,2957.5,2956.1,3.384]
[1766686591151,9.492,2957.6,2956.1,3.384]
[1766686591450,0.99399293,2957.5,2956.1,3.384]
[1766686591749,9.492,2957.6,2956.1,3.384]
[1766686591951,0.99399293,2957.5,2956.1,3.384]
[1766686592138,9.492,2957.6,2956.1,3.384]
[1766686592339,0.99391567,2957.5,2956.1,3.384]
[1766686592543,9.492,2957.6,2956.1,3.384]
[1766686592742,0.99391567,2957.5,2956.1,3.384]
[1766686592943,9.492,2957.6,2956.1,3.384]
[1766686593146,0.99391567,2957.5,2956.1,3.384]
[1766686593351,9.492,2957.6,2956.1,3.384]
[1766686593551,0.99383423,2957.5,2956.1,3.384]
[1766686593752,9.492,2957.6,2956.1,3.384]
[1766686594049,0.99383423,2957.5,2956.1,3.384]
[1766686594251,9.492,2957.6,2956.1,3.384]
[1766686594451,0.99377901,2957.5,2956.1,3.384]
[1766686594650,9.492,2957.6,2956.1,3.384]
[1766686594850,0.99377901,2957.5,2956.1,3.384]
[1766686595150,9.492,2957.6,2956.1,3.384]
[1766686595345,0.99373542,2957.5,2956.1,3.384]
[1766686595546,9.492,2957.6,2956.1,3.384]
[1766686595845,0.99373493,2957.5,2956.1,3.384]
[1766686596145,9.492,2957.6,2956.1,3.384]
[1766686596444,0.99370382,2957.5,2956.1,3.384]
[1766686596645,9.492,2957.6,2956.1,3.384]
[1766686596842,0.99370382,2957.5,2956.1,3.384]
[1766686597049,9.492,2957.6,2956.1,3.384]
[1766686597350,0.99370377,2957.5,2956.1,3.384]
[1766686597545,9.492,2957.6,2956.1,3.384]
[1766686597747,0.99368403,2957.5,2956.1,3.384]
[1766686597949,9.492,2957.6,2956.1,3.384]
[1766686598149,0.9936839,2957.5,2956.1,3.384]
[1766686598349,9.492,2957.6,2956.1,3.384]
[1766686598555,0.99367499,2957.5,2956.1,3.384]
[1766686598751,9.492,2957.6,2956.1,3.384]
[1766686599048,0.99367499,2957.5,2956.1,3.384]
[1766686599250,9.492,2957.6,2956.1,3.384]
[1766686599451,0.99367766,2957.5,2956.1,3.384]
[1766686599750,9.492,2957.6,2956.1,3.384]
[1766686599942,0.99367805,2957.5,2956.1,3.384]
[1766686600146,9.492,2957.6,2956.1,3.384]
[1766686600352,0.99369361,2957.5,2956.1,3.384]
[1766686600553,9.492,2957.6,2956.1,3.384]
[1766686600754,0.99369361,2957.5,2956.1,3.384]
[1766686600962,9.492,2957.6,2956.1,3.384]
[1766686601255,0.99369361,2957.5,2956.1,3.384]
[1766686601456,9.492,2957.6,2956.1,3.384]
[1766686601658,0.99372094,2957.5,2956.1,3.384]
[1766686601852,9.492,2957.6,2956.1,3.384]
[1766686602052,0.99372094,2957.5,2956.1,3.384]
[1766686602252,9.492,2957.6,2956.1,3.384]
[1766686602452,0.9937604,2957.5,2956.1,3.384]
[1766686602652,9.492,2957.6,2956.1,3.384]
[1766686602856,0.99376001,2957.5,2956.1,3.384]
[1766686603152,9.492,2957.6,2956.1,3.384]
[1766686603352,0.99381193,2957.5,2956.1,3.384]
[1766686603553,9.492,2957.6,2956.1,3.384]
[1766686603754,0.99381193,2957.5,2956.1,3.384]
[1766686603954,9.492,2957.6,2956.1,3.384]
[1766686604154,0.99381193,2957.5,2956.1,3.384]
[1766686604358,9.492,2957.6,2956.1,3.384]
[1766686604559,0.99387753,2957.5,2956.1,3.384]
[1766686604859,9.492,2957.6,2956.1,3.384]
[1766686605060,0.99387753,2957.5,2956.1,3.384]
[1766686605358,9.492,2957.6,2956.1,3.384]
[1766686605559,0.99395781,2957.5,2956.1,3.384]
[1766686605764,9.492,2957.6,2956.1,3.384]
[1766686605948,0.99395781,2957.5,2956.1,3.384]
[1766686606152,9.492,2957.6,2956.1,3.384]
[1766686606354,0.99405777,2957.5,2956.1,3.384]
[1766686606559,9.492,2957.6,2956.1,3.384]
[1766686606758,0.99405777,2957.5,2956.1,3.384]
[1766686606959,9.492,2957.6,2956.1,3.384]
[1766686607159,0.99405816,2957.5,2956.1,3.384]
[1766686607361,9.492,2957.6,2956.1,3.384]
[1766686607561,0.99417787,2957.5,2956.1,3.384]
[1766686607862,9.492,2957.6,2956.1,3.384]
[1766686608062,0.99417736,2957.5,2956.1,3.384]
[1766686608259,9.492,2957.6,2956.1,3.384]
[1766686608461,0.99429995,2957.5,2956.1,3.384]
[1766686608660,9.492,2957.6,2956.1,3.384]
[1766686608962,0.99429995,2957.5,2956.1,3.384]
[1766686609162,9.492,2957.6,2956.1,3.384]
[1766686609365,0.99443535,2957.5,2956.1,3.384]
[1766686609565,0.99443535,2957.4,2956.1,3.384]
[1766686609763,6.118,2957.3,2956.1,3.384]
[1766686609961,3.383,2957.2,2956.1,3.384]
[1766686620988,1.83078895,2957.1,2956.0,0.00250246]
[1766686621290,0.99083842,2957.0,2956.0,0.00250246]
[1766686622480,3.55219,2957.2,2956.0,0.00250246]
[1766686622683,0.99006315,2957.1,2956.0,0.00250246]
[1766686622885,3.55219,2957.2,2956.0,0.00250246]
[1766686622886,0.99006315,2957.0,2956.0,0.00250246]
[1766686623087,3.55219,2957.2,2956.0,0.00250246]
[1766686623281,0.99006315,2957.1,2956.0,0.00250246]
[1766686623492,0.99006315,2957.0,2956.0,0.00250246]
[1766686623694,3.55219,2957.2,2956.0,0.00250246]
[1766686623890,0.98986253,2957.1,2956.0,0.00250246]
[1766686624090,0.98986253,2957.0,2956.0,0.00250246]
[1766686624292,3.55219,2957.2,2956.0,0.00250246]
[1766686624492,0.98970221,2957.1,2956.0,0.00250246]
[1766686624692,0.98970221,2957.0,2956.0,0.00250246]
[1766686624893,3.55219,2957.2,2956.0,0.00250246]
[1766686625092,0.98971272,2957.1,2956.0,0.00250246]
[1766686625293,0.98971272,2957.0,2956.0,0.00250246]
[1766686625496,3.55219,2957.2,2956.0,0.00250246]
[1766686625794,0.98951722,2957.1,2956.0,0.00250246]
[1766686625987,0.98951722,2957.0,2956.0,0.00250246]
[1766686626188,3.55219,2957.2,2956.0,0.00250246]
[1766686626495,0.98949579,2957.1,2956.0,0.00250246]
[1766686626696,0.98949579,2957.0,2956.0,0.00250246]
[1766686626897,3.55219,2957.2,2956.0,0.00250246]
[1766686627197,0.98936633,2957.1,2956.0,0.00250246]
[1766686627397,0.98936633,2957.0,2956.0,0.00250246]
[1766686627595,3.55219,2957.2,2956.0,0.00250246]
[1766686627796,0.98923512,2957.1,2956.0,0.00250246]
[1766686627996,0.98923512,2957.0,2956.0,0.00250246]
[1766686628185,3.55219,2957.2,2956.0,0.00250246]
[1766686628392,0.989213,2957.1,2956.0,0.00250246]
[1766686628588,0.989213,2957.0,2956.0,0.00250246]
[1766686628792,3.384,2956.9,2956.0,0.00250246]
[1766686636807,3.384,2956.9,2955.6,15.07428752]
[1766686637002,0.00507451,2956.5,2955.6,15.07428752]
[1766686637206,3.38907451,2956.5,2955.6,15.07428752]
[1766686637604,9.50407451,2956.5,2955.6,13.72103531]
[1766686637798,9.50407451,2956.5,2955.6,13.72535117]
[1766686639208,9.50407451,2956.5,2955.6,10.34135117]
[1766686639909,9.50407451,2956.5,2955.6,9.98285117]
[1766686640112,9.50407451,2956.5,2955.6,9.56465117]
[1766686640406,9.499,2956.4,2955.6,9.56465117]
[1766686640609,9.499,2956.4,2955.6,0.00431586]
[1766686643412,9.499,2956.4,2955.3,0.12062271]
[1766686644405,0.17430451,2956.5,2955.3,0.12338735]
[1766686644607,6.114,2956.3,2955.3,0.12338735]
[1766686647110,6.114,2956.3,2955.1,3.384]
[1766686647412,6.28325,2956.3,2955.1,3.384]
[1766686648205,6.28325,2956.3,2955.1,0.00330629]
[1766686648410,9.498,2956.2,2955.1,0.00330629]
[1766686648609,9.50205997,2956.2,2955.1,0.00330629]
[1766686651517,9.50205997,2956.2,2954.8,3.384]
[1766686652518,9.50205997,2956.2,2954.8,3.38763715]
[1766686652718,0.16926,2956.1,2954.8,0.00363715]
[1766686653030,9.50205997,2956.2,2954.6,1.16843893]
[1766686653320,0.16927,2955.8,2954.1,3.384]
[1766686653515,9.498,2955.7,2954.1,4.54423948]
[1766686653709,50.298,2955.7,2954.1,4.54423948]
[1766686653914,40.8,2955.7,2954.1,4.54423948]
[1766686654119,9.498,2955.6,2954.1,4.54836016]
[1766686654318,9.498,2955.6,2954.1,4.58977181]
[1766686655322,9.498,2955.6,2954.1,3.38812068]
[1766686656716,40.96927,2955.8,2954.1,4.58596802]
[1766686656916,6.124,2955.5,2954.1,4.46691751]
[1766686657811,6.124,2955.5,2954.1,4.50036391]
[1766686658321,6.124,2955.5,2954.1,3.38812068]
[1766686659114,6.124,2955.5,2954.1,4.50036391]
[1766686660730,6.124,2955.5,2954.1,4.47244426]
[1766686661130,40.96927,2955.8,2954.1,4.47244426]
[1766686661431,9.527,2955.7,2954.1,4.47244426]
[1766686661929,40.96927,2955.8,2954.1,4.47244426]
[1766686662127,9.532,2955.7,2954.1,4.47244426]
[1766686662531,9.70128,2955.7,2954.1,4.47244426]
[1766686662727,0.16928,2955.6,2954.1,4.46496574]
[1766686663124,0.16928,2955.6,2954.1,1.08096574]
[1766686663430,0.16928,2955.6,2954.1,0.00412068]
[1766686664433,0.83976334,2955.5,2953.9,1.07708342]
[1766686664633,0.00507451,2955.0,2953.9,1.07708342]
[1766686664837,9.543,2954.9,2953.9,1.07708342]
[1766686665533,9.543,2954.9,2953.9,1.08037368]
[1766686671534,0.00507451,2955.0,2953.9,1.08037368]
[1766686671736,3.462,2954.9,2953.9,1.08037368]
[1766686671937,0.00507451,2955.0,2953.9,4.46537368]
[1766686672136,3.469,2954.9,2953.9,4.46537368]
[1766686680230,3.386,2954.8,2953.9,4.46537368]
[1766686680739,3.1271,2954.7,2953.9,4.46537368]
[1766686680933,2.6093,2954.7,2954.0,6.019]
[1766686681129,0.00507451,2955.0,2954.0,6.019]
[1766686681340,3.386,2954.9,2954.0,6.019]
[1766686681644,3.386,2955.1,2954.0,6.019]
[1766686681938,3.386,2955.2,2954.0,6.019]
[1766686682542,0.00507451,2954.9,2954.3,0.00507451]
[1766686682737,0.00507451,2954.9,2954.4,6.02]
[1766686685243,5.777,2955.5,2954.4,6.02]
[1766686685446,3.386,2955.4,2954.4,6.02]
[1766686686041,3.386,2955.4,2954.4,6.86047214]
[1766686686242,0.00507451,2955.2,2954.4,6.86047214]
[1766686690850,0.00507451,2955.2,2954.4,6.02]
[1766686692847,0.00507451,2955.2,2954.3,3.39107451]
[1766686693049,0.00507451,2955.2,2954.3,0.00507451]
[1766686693740,0.00507451,2955.2,2954.0,3.386]
[1766686694146,0.00507451,2955.2,2954.2,0.84047214]
[1766686694336,8.189,2955.1,2954.2,0.84047214]
[1766686694740,8.189,2955.1,2954.4,0.00507451]
[1766686695644,3.2864,2955.0,2954.5,0.84047214]
[1766686695836,3.2864,2955.0,2954.4,0.00507451]
[1766686696453,0.00507451,2955.2,2954.4,0.00507451]
[1766686696743,3.386,2955.1,2954.4,0.00507451]
[1766686698637,0.00507451,2955.2,2954.4,0.00507451]
[1766686698843,3.386,2955.1,2954.4,0.00507451]
[1766686700448,3.818,2955.6,2954.8,0.84047214]
[1766686700649,3.386,2955.5,2954.8,0.84047214]
[1766686700844,3.386,2955.5,2954.5,0.84047214]
[1766686701649,0.00507451,2955.3,2954.5,0.84047214]
[1766686702852,0.00507451,2955.3,2954.5,4.22547214]
[1766686703348,3.39007451,2955.3,2954.5,4.22547214]
[1766686715665,0.00507451,2955.3,2954.5,4.22547214]
[1766686715860,3.385,2955.2,2954.5,3.385]
[1766686716055,3.385,2955.2,2954.4,0.84554665]
[1766686717058,3.385,2955.2,2954.4,0.00507451]
[1766686718066,3.385,2955.1,2954.4,0.00507451]
[1766686719764,0.00507451,2955.3,2954.4,0.00507451]
[1766686719955,3.385,2955.2,2954.4,0.00507451]
[1766686720662,0.00507451,2955.3,2954.6,0.84047214]
[1766686720868,3.385,2955.2,2954.6,0.84047214]
[1766686726669,0.00507451,2955.3,2954.6,0.84047214]
[1766686726869,3.385,2955.2,2954.6,0.84047214]
[1766686733178,3.385,2955.2,2954.4,0.00507451]
[1766686733473,3.385,2955.2,2954.4,0.84554665]
[1766686733774,0.00507451,2955.3,2954.4,0.84554665]
[1766686733976,3.39007451,2955.3,2954.7,0.84047214]
[1766686741092,3.39007451,2955.3,2954.4,0.00507451]
[1766686741390,3.39007451,2955.3,2954.5,0.84047214]
[1766686741897,3.39007451,2955.3,2953.9,0.00329026]
[1766686742189,0.84047214,2955.0,2953.9,0.00329026]
[1766686742384,9.532,2954.9,2953.9,0.00329026]
[1766686742589,3.385,2954.8,2953.9,0.00329026]
[1766686742990,3.385,2954.8,2954.1,0.00507451]
[1766686743393,1.01484665,2955.3,2954.1,0.00507451]
[1766686743593,5.91148502,2955.2,2954.1,0.00507451]
[1766686743793,0.98948502,2955.1,2954.1,0.00507451]
[1766686743995,4.922,2955.2,2954.1,0.00507451]
[1766686744184,0.98948489,2955.1,2954.1,0.00507451]
[1766686744385,5.324,2955.0,2954.1,0.00507451]
[1766686747195,5.324,2955.0,2953.9,0.00329026]
[1766686747492,1.01484665,2955.3,2953.9,0.00329026]
[1766686747692,4.746,2955.2,2953.9,0.00329026]
[1766686749599,4.91531,2955.2,2953.9,0.00329026]
[1766686750398,4.91531,2955.2,2953.5,3.385]
[1766686751404,4.91531,2955.2,2953.5,3.38934115]
[1766686751904,0.16931,2955.1,2953.5,3.38934115]
[1766686756397,5.58675456,2955.2,2952.7,0.16945]
[1766686756590,0.16933,2954.8,2952.8,3.386]
[1766686756791,3.386,2954.7,2952.8,3.386]
[1766686757100,44.186,2954.7,2952.8,3.386]
[1766686757392,44.186,2954.7,2952.8,3.38902913]
[1766686757590,3.386,2954.7,2952.8,3.38902913]
[1766686757791,3.386,2954.7,2952.8,4.42596489]
[1766686757991,5.998,2954.6,2952.8,4.42596489]
[1766686759093,5.998,2954.6,2952.8,3.38902913]
[1766686759298,5.998,2954.6,2952.8,3.66512009]
[1766686759498,6.151,2954.5,2952.8,4.68810563]
[1766686759690,9.537,2954.5,2952.8,4.68810563]
[1766686759891,9.537,2954.5,2952.8,3.66512009]
[1766686760497,9.537,2954.5,2952.8,3.83456009]
[1766686760698,9.537,2954.5,2952.8,4.85748414]
[1766686760996,9.537,2954.5,2952.8,3.83456009]
[1766686761191,9.537,2954.5,2953.1,1.04697432]
[1766686761497,9.537,2954.5,2953.2,3.386]
[1766686762291,9.537,2954.5,2953.2,4.43126109]
[1766686763499,9.537,2954.5,2953.2,4.40939347]
[1766686763801,9.537,2954.5,2953.2,3.386]
[1766686764101,9.537,2954.5,2953.2,4.40939347]
[1766686764502,9.537,2954.5,2953.2,4.42981481]
[1766686765702,9.537,2954.5,2953.2,4.43035084]
[1766686766698,9.537,2954.5,2953.2,4.42347925]
[1766686768203,9.537,2954.5,2953.2,4.44183229]
[1766686769500,9.537,2954.5,2953.2,4.41365088]
[1766686769904,9.537,2954.5,2953.2,4.45656221]
[1766686770606,9.537,2954.5,2953.2,4.45443123]
[1766686771307,9.537,2954.5,2953.2,3.386]
[1766686771495,9.537,2954.5,2953.2,4.45443123]
[1766686772101,9.537,2954.5,2953.2,3.386]
[1766686772910,9.537,2954.5,2953.2,4.47943736]
[1766686773410,9.537,2954.5,2953.2,4.4629109]
[1766686774807,3.386,2954.4,2953.2,4.47188876]
[1766686775912,3.386,2954.4,2953.2,4.46285804]
[1766686777310,3.386,2954.4,2953.2,4.48387425]
[1766686778215,3.386,2954.4,2953.2,4.45991091]
[1766686779614,3.386,2954.4,2953.2,4.46839624]
[1766686780711,3.386,2954.4,2953.2,4.49098998]
[1766686782015,3.386,2954.4,2953.2,4.46053976]
[1766686783316,3.386,2954.4,2953.2,4.45467794]
[1766686784916,3.386,2954.4,2953.2,4.46855005]
[1766686785812,0.16933,2954.8,2953.2,4.46855005]
[1766686786017,4.38126035,2954.7,2953.2,4.47762342]
[1766686786217,3.386,2954.7,2953.2,4.47762342]
[1766686787223,3.386,2954.7,2953.2,4.48828107]
[1766686787519,0.00507451,2955.3,2953.4,0.84075456]
[1766686787725,5.39734952,2955.2,2953.4,0.84075456]
[1766686788020,0.99534952,2955.1,2953.4,0.84075456]
[1766686788213,4.402,2955.2,2953.4,0.84075456]
[1766686788214,0.99534952,2955.0,2953.4,0.84075456]
[1766686788418,4.402,2955.2,2953.4,0.84075456]
[1766686788620,0.99515337,2955.1,2953.4,0.84075456]
[1766686788820,0.99515337,2955.0,2953.4,0.84075456]
[1766686789020,4.402,2955.2,2953.4,0.84075456]
[1766686789322,0.99515239,2955.1,2953.4,0.84075456]
[1766686789623,0.99515239,2955.0,2953.4,0.84075456]
[1766686789823,4.402,2955.2,2953.4,0.84075456]
[1766686790013,0.99505,2955.1,2953.4,0.84075456]
[1766686790215,0.99505,2955.0,2953.4,0.84075456]
[1766686790415,4.402,2955.2,2953.4,0.84075456]
[1766686790615,0.99488869,2955.1,2953.4,0.84075456]
[1766686790920,0.99488869,2955.0,2953.4,0.84075456]
[1766686791122,4.402,2955.2,2953.4,0.84075456]
[1766686791319,0.99488869,2955.1,2953.4,0.84075456]
[1766686791520,4.402,2955.2,2953.4,0.84075456]
[1766686791719,0.99476099,2955.1,2953.4,0.84075456]
[1766686791918,4.402,2955.2,2953.4,0.84075456]
[1766686792121,0.99476099,2955.1,2953.4,0.84075456]
[1766686792322,4.402,2955.2,2953.4,0.84075456]
[1766686792621,0.99465626,2955.1,2953.4,0.84075456]
[1766686792822,4.402,2955.2,2953.4,0.84075456]
[1766686793018,0.99465626,2955.1,2953.4,0.84075456]
[1766686793215,4.402,2955.2,2953.4,0.84075456]
[1766686793422,0.99456884,2955.1,2953.4,0.84075456]
[1766686793612,0.16931,2955.1,2953.4,0.84075456]
[1766686793817,0.99457208,2955.0,2953.4,0.84075456]
[1766686794020,0.16931,2955.1,2953.4,0.84075456]
[1766686794215,0.9945717,2955.0,2953.3,6.013]
[1766686794521,0.99454486,2954.9,2953.3,6.013]
[1766686794720,3.386,2954.8,2953.3,6.013]
[1766686795226,3.55533,2954.8,2953.3,6.013]
[1766686799732,3.386,2954.7,2953.4,0.84075456]
[1766686799927,3.386,2954.6,2953.4,0.84075456]
[1766686800129,3.386,2954.5,2953.4,0.84075456]
[1766686800729,0.17437451,2955.3,2953.4,0.84075456]
[1766686800928,10.25782603,2955.2,2953.4,0.84075456]
[1766686801124,0.99382603,2955.1,2953.4,0.84075456]
[1766686801324,9.264,2955.2,2953.4,0.84075456]
[1766686801533,0.99376117,2955.1,2953.4,0.84075456]
[1766686801831,9.264,2955.2,2953.4,0.84075456]
[1766686802032,0.99376117,2955.1,2953.4,0.84075456]
[1766686802221,9.264,2955.2,2953.4,0.84075456]
[1766686802422,0.99373036,2955.1,2953.4,0.84075456]
[1766686802627,9.264,2955.2,2953.4,0.84075456]
[1766686802826,0.99372998,2955.1,2953.4,0.84075456]
[1766686803028,9.264,2955.2,2953.4,0.84075456]
[1766686803335,0.99371485,2955.1,2953.4,0.84075456]
[1766686803631,9.264,2955.2,2953.4,0.84075456]
[1766686803832,0.99370778,2955.1,2953.4,0.84075456]
[1766686804133,9.264,2955.2,2953.4,0.84075456]
[1766686804329,0.99369721,2955.1,2953.4,0.84075456]
[1766686804634,9.264,2955.2,2953.4,0.84075456]
[1766686804834,0.99368957,2955.1,2953.4,0.84075456]
[1766686805031,0.17437451,2955.3,2953.4,0.84075456]
[1766686805230,6.156,2955.0,2953.4,0.84075456]
[1766686807936,6.156,2955.0,2953.3,6.013]
[1766686808137,6.156,2955.0,2953.9,0.84075335]
[1766686810646,0.17437451,2955.3,2953.9,0.84075335]
[1766686810943,9.541,2955.2,2953.9,0.84075335]
[1766686824963,0.17437451,2955.3,2953.9,0.84075335]
[1766686825358,9.539,2955.2,2953.9,0.84075335]
[1766686826562,0.17437451,2955.3,2953.9,0.84075335]
[1766686826763,6.154,2955.1,2953.9,0.84075335]
[1766686827264,0.17437451,2955.3,2953.9,0.84075335]
[1766686827459,9.541,2955.2,2953.9,0.84075335]
[1766686827665,9.541,2955.1,2953.9,0.84075335]
[1766686828162,0.17437451,2955.3,2953.9,0.84075335]
[1766686828363,6.155,2955.0,2953.9,0.84075335]
[1766686828567,0.17437451,2955.3,2953.9,0.84075335]
[1766686828767,10.53456146,2955.2,2953.9,0.84075335]
[1766686829064,9.541,2955.2,2953.9,0.84075335]
[1766686829465,0.17437451,2955.3,2953.9,0.84075335]
[1766686829666,10.53571254,2955.2,2953.9,0.84075335]
[1766686829966,9.542,2955.2,2953.9,0.84075335]
[1766686833768,9.542,2955.2,2953.8,3.386]
[1766686839177,0.99428822,2955.1,2953.8,3.386]
[1766686839474,9.542,2955.2,2953.8,3.386]
[1766686839673,0.99428784,2955.1,2953.8,3.386]
[1766686839876,9.542,2955.2,2953.8,3.386]
[1766686840072,0.99428784,2955.1,2953.8,3.386]